bitfinex/quotes_SOLUSD_20230104
["timestamp","ask_amount","ask_price","bid_price","bid_amount"]
[1672808282252,30.0,13.425,13.406,30.0]
[1672808282582,30.0,13.425,13.407,20.0]
[1672808282774,33.71932034,13.427,13.407,20.0]
[1672808282989,55.91,13.427,13.408,30.0]
[1672808283203,173.2477,13.428,13.409,20.0]
[1672808283416,30.0,13.426,13.409,20.0]
[1672808283625,22.87,13.43,13.409,20.0]
[1672808283626,14.21045382,13.432,13.409,20.0]
[1672808283843,117.3477,13.429,13.41,30.0]
[1672808284036,117.3477,13.429,13.41,52.6]
[1672808284251,117.3477,13.429,13.411,20.0]
[1672808284672,117.3477,13.429,13.413,30.0]
[1672808284892,55.87,13.437,13.415,30.0]
[1672808285090,111.5632,13.436,13.417,30.0]
[1672808285304,111.5632,13.436,13.418,12.38]
[1672808285512,111.5632,13.436,13.42,30.0]
[1672808285723,111.5632,13.436,13.421,15.42]
[1672808286341,55.84,13.443,13.421,15.42]
[1672808286670,111.5632,13.441,13.422,36.73899334]
[1672808286877,30.0,13.448,13.423,27.5]
[1672808287086,113.9,13.44,13.421,31.36]
[1672808287409,55.86,13.439,13.418,31.37]
[1672808287631,55.86,13.439,13.419,50.0]
[1672808287632,50.0,13.438,13.419,50.0]
[1672808287816,55.87,13.437,13.421,30.0]
[1672808288032,55.87,13.437,13.422,31.42]
[1672808288242,55.87,13.437,13.421,30.0]
[1672808289288,55.87,13.437,13.42,31.52]
[1672808289500,30.0,13.436,13.42,31.52]
[1672808289709,55.88,13.435,13.42,31.52]
[1672808290570,30.0,13.434,13.419,20.0]
[1672808290877,22.79,13.43,13.419,20.0]
[1672808291617,22.79,13.43,13.418,20.0]
[1672808292242,22.79,13.43,13.417,20.0]
[1672808292658,22.79,13.43,13.418,30.87]
[1672808293085,22.79,13.43,13.419,20.0]
[1672808294018,55.89,13.431,13.417,20.0]
[1672808294245,22.79,13.43,13.417,20.0]
[1672808295399,22.79,13.43,13.418,32.04]
[1672808295717,22.79,13.43,13.419,20.0]
[1672808295932,22.79,13.43,13.417,20.0]
[1672808296126,37.08910679,13.435,13.417,20.0]
[1672808296127,41.51479841,13.435,13.419,22.13152883]
[1672808296455,111.5632,13.439,13.421,30.0]
[1672808296666,20.0,13.438,13.422,31.71]
[1672808296854,20.0,13.438,13.423,30.0]
[1672808297064,20.0,13.438,13.425,30.0]
[1672808298036,75.86,13.438,13.425,30.0]
[1672808301400,20.0,13.438,13.425,30.0]
[1672808301590,55.87,13.437,13.425,30.0]
[1672808302013,75.86,13.438,13.425,30.0]
[1672808304021,111.5632,13.439,13.426,69.12]
[1672808304231,111.5632,13.439,13.427,30.0]
[1672808304423,111.5632,13.439,13.429,30.0]
[1672808304634,111.5632,13.439,13.43,71.39]
[1672808304841,111.5632,13.439,13.431,30.0]
[1672808305067,55.83,13.447,13.431,30.0]
[1672808305391,109.0134,13.447,13.431,30.0]
[1672808305600,55.83,13.446,13.431,30.0]
[1672808314318,30.0,13.445,13.43,132.9856]
[1672808314524,55.84,13.444,13.43,132.9856]
[1672808316440,30.0,13.443,13.43,132.9856]
[1672808317273,25.22,13.44,13.43,132.9856]
[1672808317485,25.22,13.44,13.43,20.0]
[1672808317683,25.22,13.44,13.429,20.0]
[1672808318641,108.27418185,13.439,13.414,158.55357818]
[1672808318829,221.43528185,13.439,13.421,108.1124]
[1672808319050,81.62263411,13.438,13.422,30.0]
[1672808319266,55.87,13.437,13.422,30.0]
[1672808319801,137.49263411,13.437,13.421,108.1124]
[1672808320206,30.0,13.436,13.421,108.1124]
[1672808320415,55.88,13.435,13.421,108.1124]
[1672808320833,111.62263411,13.436,13.422,40.88]
[1672808321041,30.0,13.434,13.422,40.88]
[1672808321254,30.0,13.434,13.421,108.1124]
[1672808321585,81.62263411,13.433,13.421,108.1124]
[1672808322947,81.62263411,13.433,13.422,30.0]
[1672808323789,81.62263411,13.433,13.421,108.1124]
[1672808323988,81.62263411,13.433,13.422,30.0]
[1672808324204,81.62263411,13.433,13.422,70.99]
[1672808325477,81.62263411,13.433,13.422,40.99]
[1672808325693,81.62263411,13.433,13.409,114.4912]
[1672808325694,30.0,13.429,13.409,114.4912]
[1672808325914,50.65,13.42,13.409,114.4912]
[1672808326208,30.0,13.418,13.404,38.7970099]
[1672808326421,30.0,13.418,13.401,76.5979263]
[1672808326422,30.0,13.418,13.403,38.7970099]
[1672808327061,30.0,13.418,13.404,20.0]
[1672808327454,81.91852907,13.418,13.404,20.0]
[1672808327898,81.91852907,13.418,13.403,38.7970099]
[1672808329160,81.91852907,13.418,13.404,2.995]
[1672808329352,81.91852907,13.418,13.404,22.995]
[1672808329560,85.94,13.419,13.404,22.995]
[1672808329561,55.94,13.419,13.404,22.995]
[1672808329789,25.46,13.42,13.404,22.995]
[1672808331063,25.46,13.42,13.405,30.0]
[1672808331248,25.46,13.42,13.406,31.83]
[1672808331459,25.46,13.42,13.407,30.0]
[1672808331678,25.46,13.42,13.408,20.0]
[1672808333350,110.3645,13.421,13.409,14.1]
[1672808333671,110.3645,13.421,13.41,74.97]
[1672808333872,55.89,13.431,13.412,30.0]
[1672808334084,30.0,13.439,13.413,39.88]
[1672808334085,55.88,13.434,13.413,39.88]
[1672808334287,55.88,13.434,13.414,30.0]
[1672808334499,55.88,13.434,13.415,22.37]
[1672808334705,55.88,13.434,13.417,30.0]
[1672808334923,55.88,13.434,13.418,138.4607]
[1672808335137,55.86,13.438,13.419,50.0]
[1672808335348,30.0,13.436,13.419,50.0]
[1672808335558,55.88,13.435,13.419,50.0]
[1672808336393,30.0,13.434,13.419,20.0]
[1672808336604,55.88,13.433,13.419,20.0]
[1672808336829,25.0,13.43,13.419,20.0]
[1672808337044,85.9,13.429,13.419,20.0]
[1672808337253,20.0,13.428,13.405,30.0]
[1672808337459,55.91,13.427,13.408,135.1459]
[1672808337667,30.0,13.426,13.409,30.0]
[1672808337888,55.92,13.425,13.409,30.0]
[1672808338096,55.92,13.425,13.41,20.0]
[1672808338624,55.92,13.425,13.409,30.0]
[1672808339975,55.92,13.425,13.41,20.0]
[1672808340504,30.0,13.424,13.41,20.0]
[1672808340714,55.93,13.423,13.41,20.0]
[1672808341132,55.93,13.423,13.409,50.0]
[1672808342198,30.0,13.424,13.409,50.0]
[1672808342413,55.93,13.423,13.409,50.0]
[1672808342725,55.93,13.423,13.409,20.0]
[1672808344283,30.0,13.422,13.409,20.0]
[1672808344501,25.0,13.42,13.409,20.0]
[1672808344700,30.0,13.419,13.409,20.0]
[1672808344911,130.8504531,13.419,13.409,20.0]
[1672808345330,30.0,13.417,13.409,20.0]
[1672808345549,55.95,13.416,13.409,20.0]
[1672808345750,30.0,13.415,13.409,20.0]
[1672808346179,30.0,13.415,13.402,20.0]
[1672808346388,30.0,13.415,13.397,132.6867]
[1672808347140,30.0,13.415,13.398,30.0]
[1672808347342,30.0,13.415,13.399,20.0]
[1672808347544,55.95,13.416,13.399,20.0]
[1672808347756,85.95,13.417,13.399,20.0]
[1672808348820,44.9104531,13.416,13.399,20.0]
[1672808349040,30.0,13.409,13.397,112.6867]
[1672808349770,25.22,13.41,13.397,112.6867]
[1672808349971,55.98,13.411,13.397,112.6867]
[1672808350174,30.0,13.41,13.398,20.0]
[1672808350381,55.98,13.411,13.398,20.0]
[1672808350595,55.98,13.411,13.398,50.0]
[1672808351013,55.97,13.413,13.398,50.0]
[1672808351436,55.97,13.413,13.398,20.0]
[1672808351855,55.97,13.413,13.398,50.0]
[1672808352294,312.0,13.727,13.399,30.0]
[1672808352295,174.9123,13.418,13.399,30.0]
[1672808352488,118.9623,13.418,13.4,20.0]
[1672808352704,118.9623,13.418,13.401,30.0]
[1672808352915,55.94,13.419,13.403,30.0]
[1672808353132,55.93,13.421,13.404,132.3516]
[1672808353331,55.93,13.422,13.405,30.0]
[1672808353559,55.93,13.422,13.406,20.0]
[1672808353765,55.93,13.422,13.407,30.0]
[1672808353979,55.93,13.422,13.408,20.0]
[1672808354722,108.3214,13.423,13.408,20.0]
[1672808354923,55.93,13.422,13.408,20.0]
[1672808355338,108.3214,13.423,13.408,20.0]
[1672808355749,55.93,13.422,13.408,20.0]
[1672808357541,55.91,13.426,13.41,25.22]
[1672808357758,55.86,13.438,13.411,135.2811]
[1672808358076,20.0,13.437,13.412,30.0]
[1672808358288,55.87,13.436,13.412,30.0]
[1672808358496,55.87,13.436,13.413,20.0]
[1672808358706,55.87,13.436,13.414,30.0]
[1672808359244,55.87,13.436,13.415,20.0]
[1672808359431,55.87,13.436,13.416,30.0]
[1672808359645,30.0,13.435,13.417,20.0]
[1672808359849,55.88,13.434,13.417,20.0]
[1672808360367,55.88,13.434,13.418,118.2946]
[1672808360604,55.88,13.434,13.419,20.0]
[1672808361013,55.88,13.434,13.42,30.0]
[1672808361633,55.87,13.436,13.42,30.0]
[1672808368712,20.0,13.437,13.42,30.0]
[1672808368900,55.87,13.436,13.42,30.0]
[1672808372075,30.0,13.435,13.419,20.0]
[1672808372385,25.19,13.43,13.419,20.0]
[1672808372580,85.9,13.429,13.419,20.0]
[1672808373435,85.9,13.429,13.404,124.80724421]
[1672808373628,20.0,13.428,13.41,119.9267]
[1672808373956,85.91,13.427,13.41,119.9267]
[1672808375306,126.9287731,13.427,13.41,119.9267]
[1672808379616,25.22,13.42,13.41,119.9267]
[1672808380671,55.93,13.421,13.41,119.9267]
[1672808380884,55.91,13.426,13.411,30.0]
[1672808381100,55.91,13.427,13.411,30.0]
[1672808382789,55.91,13.427,13.413,30.0]
[1672808382983,55.89,13.431,13.414,20.0]
[1672808383194,55.89,13.431,13.415,30.0]
[1672808383846,55.89,13.431,13.417,30.0]
[1672808384048,55.89,13.431,13.418,20.0]
[1672808384666,55.89,13.431,13.419,30.0]
[1672808384876,55.89,13.431,13.42,20.0]
[1672808385090,55.89,13.431,13.421,30.0]
[1672808385309,55.87,13.437,13.421,30.0]
[1672808386135,55.87,13.437,13.42,20.0]
[1672808386346,30.0,13.436,13.42,20.0]
[1672808386555,55.88,13.435,13.42,20.0]
[1672808386776,30.0,13.434,13.42,20.0]
[1672808386978,55.88,13.433,13.42,20.0]
[1672808387181,126.1,13.43,13.406,122.85509019]
[1672808387410,85.9,13.429,13.41,116.9916]
[1672808387625,30.0,13.427,13.41,116.9916]
[1672808387834,55.91,13.426,13.41,116.9916]
[1672808388043,30.0,13.425,13.41,116.9916]
[1672808388255,55.92,13.424,13.41,116.9916]
[1672808390566,55.91,13.426,13.411,30.0]
[1672808390885,55.91,13.427,13.411,30.0]
[1672808392668,30.0,13.426,13.41,116.9916]
[1672808392988,55.92,13.425,13.41,116.9916]
[1672808393182,55.92,13.425,13.411,30.0]
[1672808393392,55.91,13.426,13.411,30.0]
[1672808393597,30.0,13.425,13.41,116.9916]
[1672808393825,55.92,13.424,13.41,116.9916]
[1672808395924,25.0,13.42,13.41,116.9916]
[1672808399818,25.0,13.42,13.411,30.0]
[1672808400131,25.0,13.42,13.41,116.9916]
[1672808401079,25.0,13.42,13.411,30.0]
[1672808402241,25.0,13.42,13.41,116.9916]
[1672808402748,30.0,13.426,13.41,116.9916]
[1672808402950,55.92,13.425,13.41,116.9916]
[1672808403904,41.0187731,13.427,13.411,30.0]
[1672808403905,55.91,13.427,13.411,30.0]
[1672808404118,55.9,13.429,13.411,30.0]
[1672808404842,25.46,13.43,13.411,30.0]
[1672808405051,25.46,13.43,13.412,20.0]
[1672808405369,100.88,13.44,13.412,20.0]
[1672808405370,172.144,13.433,13.414,30.0]
[1672808405574,116.264,13.433,13.415,54.81756559]
[1672808406000,116.264,13.433,13.417,34.81756559]
[1672808406225,116.264,13.433,13.419,34.81756559]
[1672808406434,30.0,13.439,13.422,34.81756559]
[1672808406435,55.87,13.436,13.422,34.81756559]
[1672808406644,30.0,13.439,13.422,34.81756559]
[1672808406645,55.86,13.438,13.423,30.0]
[1672808406857,55.86,13.438,13.424,34.81756559]
[1672808407065,20.0,13.437,13.425,30.0]
[1672808407286,55.87,13.436,13.425,1122.6694768]
[1672808407816,55.86,13.438,13.425,1122.6694768]
[1672808408023,55.86,13.438,13.418,114.5211]
[1672808408024,55.86,13.438,13.427,30.0]
[1672808408222,55.86,13.439,13.428,18.8247025]
[1672808408427,55.86,13.439,13.427,1122.6694768]
[1672808408853,55.86,13.439,13.428,1092.6694768]
[1672808409066,20.0,13.438,13.429,30.0]
[1672808409276,55.87,13.437,13.429,30.0]
[1672808410108,55.87,13.437,13.428,1092.6694768]
[1672808410444,55.87,13.437,13.429,30.0]
[1672808410653,20.0,13.438,13.429,30.0]
[1672808411905,55.83,13.446,13.429,30.0]
[1672808412104,55.83,13.447,13.43,20.0]
[1672808412310,55.83,13.447,13.431,108.8284]
[1672808412538,55.83,13.447,13.433,45.22963227]
[1672808414838,25.28,13.45,13.433,45.22963227]
[1672808415049,20.0,13.447,13.433,30.0]
[1672808415796,75.83,13.447,13.433,30.0]
[1672808416006,20.0,13.447,13.433,30.0]
[1672808416757,75.83,13.447,13.432,1046.6296866]
[1672808417386,75.83,13.447,13.433,30.0]
[1672808417595,20.0,13.447,13.433,30.0]
[1672808418122,75.83,13.447,13.433,30.0]
[1672808419172,75.83,13.447,13.432,30.0]
[1672808419594,75.83,13.447,13.431,108.8284]
[1672808419793,30.0,13.446,13.431,108.8284]
[1672808420420,126.07,13.44,13.422,30.0]
[1672808420741,30.0,13.438,13.423,112.611]
[1672808420964,75.87,13.437,13.423,112.611]
[1672808422748,75.87,13.437,13.424,30.0]
[1672808423369,75.87,13.437,13.423,112.611]
[1672808424524,75.87,13.437,13.424,30.0]
[1672808424740,20.0,13.437,13.424,30.0]
[1672808427365,20.0,13.438,13.424,30.0]
[1672808429793,30.0,13.437,13.423,112.611]
[1672808430426,50.0,13.438,13.423,112.611]
[1672808432096,20.0,13.438,13.424,30.0]
[1672808432306,20.0,13.438,13.423,112.611]
[1672808432515,30.0,13.437,13.423,112.611]
[1672808436733,70.72075974,13.437,13.423,112.611]
[1672808438086,30.0,13.435,13.423,112.611]
[1672808439682,27.5,13.435,13.423,112.611]
[1672808440709,103.7553,13.436,13.423,112.611]
[1672808440930,47.8853,13.436,13.423,112.611]
[1672808445969,30.0,13.435,13.423,112.611]
[1672808447565,103.7553,13.436,13.423,112.611]
[1672808447755,47.8853,13.436,13.423,112.611]
[1672808450612,47.8853,13.436,13.424,30.0]
[1672808451342,24.1751,13.439,13.424,30.0]
[1672808451559,24.1751,13.439,13.426,16.3368709]
[1672808451745,24.1751,13.439,13.425,20.0]
[1672808451952,24.1751,13.439,13.426,30.0]
[1672808452183,24.1751,13.439,13.428,30.0]
[1672808452607,24.1751,13.439,13.43,30.0]
[1672808466624,24.1751,13.439,13.429,20.0]
[1672808467147,24.1751,13.439,13.427,20.0]
[1672808467350,30.0,13.438,13.426,20.0]
[1672808467663,30.0,13.438,13.424,48.1325]
[1672808467664,30.0,13.438,13.425,20.0]
[1672808467877,48.09015832,13.437,13.42,23.0679]
[1672808468088,25.09,13.43,13.42,23.0679]
[1672808468283,55.9,13.429,13.416,49.3245]
[1672808468499,55.9,13.429,13.416,108.2271]
[1672808469119,20.0,13.428,13.408,73.8979]
[1672808469343,55.91,13.427,13.408,188.0512]
[1672808469764,30.0,13.426,13.409,30.0]
[1672808469976,55.92,13.425,13.409,30.0]
[1672808470187,30.0,13.424,13.408,188.0512]
[1672808470383,30.0,13.424,13.408,114.1533]
[1672808470593,103.0706,13.425,13.408,114.1533]
[1672808470821,103.0706,13.425,13.409,30.0]
[1672808471870,30.0,13.424,13.408,114.1533]
[1672808472078,30.0,13.422,13.408,114.1533]
[1672808472487,103.0806,13.423,13.408,114.1533]
[1672808472707,47.1506,13.423,13.409,30.0]
[1672808472902,47.1506,13.423,13.41,20.0]
[1672808473536,47.1506,13.423,13.411,30.0]
[1672808475219,55.9,13.429,13.412,20.0]
[1672808475435,49.7097,13.429,13.413,30.0]
[1672808475641,49.7097,13.429,13.415,30.0]
[1672808475850,49.7097,13.429,13.417,30.0]
[1672808476186,49.7097,13.429,13.418,20.0]
[1672808483095,37.2097,13.429,13.418,20.0]
[1672808484354,37.2097,13.429,13.419,30.0]
[1672808484559,37.2097,13.429,13.421,30.0]
[1672808484774,80.0272,13.432,13.421,30.0]
[1672808485212,24.1372,13.432,13.421,30.0]
[1672808486047,24.1372,13.432,13.42,20.0]
[1672808486667,24.1372,13.432,13.419,20.0]
[1672808486893,55.89,13.431,13.419,20.0]
[1672808488891,25.09,13.43,13.419,20.0]
[1672808489092,55.9,13.429,13.419,20.0]
[1672808489825,103.4149,13.431,13.419,20.0]
[1672808491731,103.4149,13.431,13.419,74.75240537]
[1672808492047,47.5249,13.431,13.42,30.0]
[1672808492446,47.5249,13.431,13.422,30.0]
[1672808492867,47.5249,13.431,13.421,54.75240537]
[1672808493310,47.5249,13.431,13.419,20.0]
[1672808493506,47.5249,13.431,13.418,20.0]
[1672808493710,103.4149,13.431,13.418,20.0]
[1672808494354,25.0,13.43,13.418,74.75240537]
[1672808494565,55.9,13.429,13.418,74.75240537]
[1672808494881,55.9,13.429,13.418,20.0]
[1672808496266,47.5249,13.431,13.419,30.0]
[1672808496450,47.5249,13.431,13.42,20.0]
[1672808496673,47.5249,13.431,13.42,69.81240537]
[1672808496869,47.5249,13.431,13.421,30.0]
[1672808498644,47.5249,13.431,13.42,20.0]
[1672808498858,55.9,13.43,13.42,20.0]
[1672808501615,55.88,13.435,13.42,20.0]
[1672808501810,25.46,13.44,13.42,20.0]
[1672808501811,55.87,13.436,13.421,141.0093]
[1672808502139,164.5982,13.437,13.423,30.0]
[1672808502330,108.7282,13.437,13.425,30.0]
[1672808502539,103.5763,13.439,13.426,20.0]
[1672808503922,60.87325963,13.438,13.421,111.0093]
[1672808504135,30.0,13.436,13.421,111.0093]
[1672808504344,30.0,13.434,13.421,111.0093]
[1672808504563,25.22,13.43,13.421,111.0093]
[1672808504758,55.9,13.429,13.421,111.0093]
[1672808505180,25.22,13.43,13.421,111.0093]
[1672808506759,102.9736,13.432,13.421,111.0093]
[1672808509262,30.0,13.431,13.421,111.0093]
[1672808509473,55.9,13.43,13.421,111.0093]
[1672808509683,80.99,13.43,13.421,111.0093]
[1672808510843,25.09,13.43,13.421,111.0093]
[1672808511791,55.89,13.431,13.421,111.0093]
[1672808511995,47.0836,13.432,13.421,111.0093]
[1672808513171,25.19,13.43,13.421,111.0093]
[1672808513691,47.0836,13.432,13.421,111.0093]
[1672808513882,47.0836,13.432,13.422,30.0]
[1672808514517,47.0836,13.432,13.421,111.0093]
[1672808514732,25.19,13.43,13.421,111.0093]
[1672808521040,47.0836,13.432,13.421,111.0093]
[1672808521262,25.19,13.43,13.422,30.0]
[1672808521586,25.19,13.43,13.421,111.0093]
[1672808528408,20.19,13.43,13.421,111.0093]
[1672808535638,20.19,13.43,13.422,30.0]
[1672808536061,20.19,13.43,13.421,111.0093]
[1672808537431,47.0836,13.432,13.421,111.0093]
[1672808537652,47.0836,13.432,13.422,30.0]
[1672808537844,25.46,13.44,13.423,20.0]
[1672808538183,47.622,13.439,13.424,30.0]
[1672808538394,47.622,13.439,13.424,85.02107203]
[1672808538611,47.622,13.439,13.426,30.0]
[1672808538911,47.622,13.439,13.427,20.0]
[1672808540274,30.0,13.438,13.427,20.0]
[1672808540474,30.0,13.438,13.425,20.0]
[1672808540679,78.0399,13.438,13.425,20.0]
[1672808540889,78.0399,13.438,13.421,111.0093]
[1672808541098,6.31,13.43,13.421,111.0093]
[1672808546786,48.0399,13.432,13.421,111.0093]
[1672808547000,48.0399,13.432,13.422,30.0]
[1672808548263,48.0399,13.432,13.423,20.0]
[1672808548469,6.36,13.44,13.423,20.0]
[1672808548680,47.4136,13.439,13.424,59.72707203]
[1672808548895,47.4136,13.439,13.426,30.0]
[1672808549105,47.4136,13.439,13.427,20.0]
[1672808550269,47.4136,13.439,13.427,136.6338]
[1672808551629,20.0,13.438,13.427,116.6338]
[1672808551846,30.0,13.436,13.427,116.6338]
[1672808552058,55.87,13.437,13.427,116.6338]
[1672808552468,55.87,13.437,13.422,30.0]
[1672808552692,47.456,13.436,13.422,138.4073]
[1672808553973,47.456,13.436,13.422,108.4073]
[1672808555416,30.0,13.435,13.422,108.4073]
[1672808555631,85.88,13.435,13.422,108.4073]
[1672808555837,30.0,13.435,13.422,108.4073]
[1672808556068,25.23,13.43,13.422,108.4073]
[1672808558263,125.86,13.43,13.413,38.7970099]
[1672808558595,134.68639696,13.429,13.413,30.0]
[1672808558994,30.0,13.427,13.412,115.25]
[1672808559216,47.4248,13.426,13.412,115.25]
[1672808560253,30.0,13.425,13.412,115.25]
[1672808561102,77.4248,13.425,13.412,115.25]
[1672808563109,47.4248,13.425,13.412,115.25]
[1672808563639,30.0,13.424,13.412,115.25]
[1672808564250,25.14,13.42,13.412,115.25]
[1672808565616,30.0,13.419,13.412,115.25]
[1672808566031,25.14,13.42,13.412,115.25]
[1672808575948,125.77,13.42,13.412,115.25]
[1672808577936,125.77,13.42,13.401,23.063]
[1672808578142,25.25,13.41,13.401,23.063]
[1672808578342,25.25,13.41,13.396,120.60447707]
[1672808578343,30.0,13.409,13.396,120.60447707]
[1672808579718,30.0,13.409,13.398,120.01698921]
[1672808579917,30.0,13.409,13.396,120.60447707]
[1672808580883,30.0,13.409,13.395,465.9415135]
[1672808581099,25.03,13.4,13.395,442.9580135]
[1672808581294,25.03,13.4,13.391,23.84]
[1672808581512,4.00020325,13.399,13.391,23.84]
[1672808581832,4.00020325,13.399,13.389,77.6638]
[1672808582453,4.00020325,13.399,13.39,30.0]
[1672808582786,25.03,13.4,13.39,30.0]
[1672808583610,25.03,13.4,13.39,138.3931]
[1672808584565,25.03,13.4,13.39,108.3931]
[1672808587071,30.0,13.399,13.39,108.3931]
[1672808590341,1.86397166,13.398,13.39,108.3931]
[1672808590550,30.0,13.399,13.39,108.3931]
[1672808591386,125.66,13.4,13.39,108.3931]
[1672808591800,25.1,13.4,13.39,108.3931]
[1672808592749,25.17,13.42,13.403,121.02344497]
[1672808593087,338.13573385,13.447,13.403,121.02344497]
[1672808593088,94.4814,13.429,13.404,78.29129938]
[1672808593274,30.0,13.428,13.405,30.0]
[1672808593482,55.91,13.427,13.406,20.0]
[1672808593816,55.91,13.427,13.407,30.0]
[1672808593817,30.0,13.426,13.407,30.0]
[1672808594026,30.0,13.424,13.408,20.0]
[1672808594432,25.03,13.42,13.408,20.0]
[1672808594643,125.91,13.42,13.394,109.9573335]
[1672808594859,25.03,13.41,13.4,113.8078]
[1672808595079,25.03,13.41,13.397,30.0]
[1672808595271,30.0,13.409,13.397,30.0]
[1672808595799,30.0,13.409,13.398,113.8078]
[1672808596005,133.18651207,13.436,13.404,94.00273894]
[1672808596215,25.25,13.43,13.405,24.07982509]
[1672808596445,25.25,13.43,13.407,24.07982509]
[1672808596634,25.25,13.43,13.409,24.07982509]
[1672808596845,126.44,13.43,13.41,50.0]
[1672808597057,126.44,13.43,13.41,30.0]
[1672808597058,30.0,13.429,13.41,30.0]
[1672808597275,55.9,13.428,13.41,52.13152883]
[1672808597480,85.9,13.429,13.41,52.13152883]
[1672808597695,20.0,13.427,13.41,52.13152883]
[1672808597905,20.0,13.428,13.411,22.13152883]
[1672808598113,20.0,13.428,13.412,30.0]
[1672808598322,20.0,13.429,13.412,30.0]
[1672808598542,20.0,13.429,13.413,22.13152883]
[1672808598739,185.9446,13.434,13.413,22.13152883]
[1672808598740,126.66,13.44,13.414,30.0]
[1672808599070,25.23,13.44,13.415,45.12102793]
[1672808599287,126.11,13.44,13.416,30.0]
[1672808599496,126.11,13.44,13.417,45.12102793]
[1672808599708,126.11,13.44,13.418,30.0]
[1672808599900,126.11,13.44,13.419,44.62102793]
[1672808600232,126.11,13.44,13.421,30.0]
[1672808600434,0.17,13.44,13.422,20.0]
[1672808600649,25.1,13.45,13.424,121.17714652]
[1672808600859,25.1,13.45,13.425,30.0]
[1672808601175,25.1,13.45,13.426,178.39114147]
[1672808601176,101.0,13.45,13.426,178.39114147]
[1672808601402,55.82,13.449,13.427,158.96382832]
[1672808601595,55.82,13.449,13.429,30.0]
[1672808601915,126.14,13.44,13.43,53.0631859]
[1672808602106,126.02,13.44,13.432,53.0631859]
[1672808602308,42.85885927,13.439,13.429,30.0]
[1672808602524,126.17,13.45,13.431,23.98985054]
[1672808602747,126.17,13.45,13.434,23.98985054]
[1672808602958,126.17,13.45,13.436,23.98985054]
[1672808603160,126.17,13.45,13.437,30.0]
[1672808603364,126.17,13.45,13.438,20.0]
[1672808603575,126.17,13.45,13.439,30.0]
[1672808604230,126.17,13.45,13.44,20.0]
[1672808604846,25.17,13.45,13.441,30.0]
[1672808605058,55.78,13.459,13.443,19.4125074]